[Event "*** Titled Tuesday Blitz"]
[Site "Chess.com"]
[Date "2021.04.06"]
[Round "2"]
[White "Schack-Hugo"]
[Black "freshfoodcompany"]
[Result "0-1"]
[WhiteElo "2200"]
[BlackElo "2435"]
[TimeControl "180+1"]
[EndTime "10:19:36 PDT"]
[Termination "freshfoodcompany won by resignation"]

1. e4 {[%clk 0:02:59.3]} 1... c6 {[%clk 0:03:00]} 2. d4 {[%clk 0:02:56.3]} 2...
d5 {[%clk 0:03:00.5]} 3. Nc3 {[%clk 0:02:54.6]} 3... dxe4 {[%clk 0:03:01.1]} 4.
Nxe4 {[%clk 0:02:55.3]} 4... Nf6 {[%clk 0:03:01.6]} 5. Nxf6+ {[%clk 0:02:52.4]}
5... exf6 {[%clk 0:03:02.5]} 6. c3 {[%clk 0:02:45.9]} 6... Bd6 {[%clk
0:03:02.5]} 7. Bd3 {[%clk 0:02:43.7]} 7... O-O {[%clk 0:03:02.4]} 8. Ne2 {[%clk
0:02:22.9]} 8... Re8 {[%clk 0:03:00.1]} 9. O-O {[%clk 0:02:21.4]} 9... Nd7
{[%clk 0:02:59]} 10. Bf4 {[%clk 0:02:09.7]} 10... Nf8 {[%clk 0:02:59.2]} 11.
Bxd6 {[%clk 0:02:05.9]} 11... Qxd6 {[%clk 0:03:00.1]} 12. Ng3 {[%clk 0:02:04]}
12... Ng6 {[%clk 0:02:58.1]} 13. Qc2 {[%clk 0:01:40]} 13... Be6 {[%clk
0:02:55.7]} 14. Ne4 {[%clk 0:01:29.3]} 14... Qc7 {[%clk 0:02:54.3]} 15. Nc5
{[%clk 0:01:24.8]} 15... Bd5 {[%clk 0:02:52.6]} 16. c4 {[%clk 0:01:11]} 16...
Be6 {[%clk 0:02:48.3]} 17. Rfe1 {[%clk 0:00:52.2]} 17... Rad8 {[%clk 0:02:41.2]}
18. Nxe6 {[%clk 0:00:38.4]} 18... fxe6 {[%clk 0:02:38.5]} 19. Bxg6 {[%clk
0:00:36.6]} 19... hxg6 {[%clk 0:02:37.6]} 20. Qxg6 {[%clk 0:00:37.5]} 20... Qf7
{[%clk 0:02:37]} 21. Qxf7+ {[%clk 0:00:19.6]} 21... Kxf7 {[%clk 0:02:37.9]} 22.
Rad1 {[%clk 0:00:19]} 22... Rd6 {[%clk 0:02:36.4]} 23. Rd2 {[%clk 0:00:15.8]}
23... Red8 {[%clk 0:02:36.2]} 24. Red1 {[%clk 0:00:15.7]} 24... e5 {[%clk
0:02:29.7]} 25. d5 {[%clk 0:00:14.7]} 25... b5 {[%clk 0:02:27.3]} 26. b3 {[%clk
0:00:13.3]} 26... a5 {[%clk 0:02:25.7]} 27. Kf1 {[%clk 0:00:11.7]} 27... a4
{[%clk 0:02:24]} 28. Ke2 {[%clk 0:00:11.6]} 28... axb3 {[%clk 0:02:21.3]} 29.
axb3 {[%clk 0:00:11.4]} 29... bxc4 {[%clk 0:02:21]} 30. bxc4 {[%clk 0:00:11.6]}
30... cxd5 {[%clk 0:02:21]} 31. Rxd5 {[%clk 0:00:10.5]} 31... Rxd5 {[%clk
0:02:19.1]} 32. cxd5 {[%clk 0:00:07.5]} 32... Ke7 {[%clk 0:02:16.6]} 33. Ke3
{[%clk 0:00:07]} 33... f5 {[%clk 0:02:14.9]} 34. g4 {[%clk 0:00:06.1]} 34...
fxg4 {[%clk 0:02:08.2]} 35. Ke4 {[%clk 0:00:06]} 35... Rh8 {[%clk 0:02:05.8]}
36. Kxe5 {[%clk 0:00:03.9]} 36... Rh5+ {[%clk 0:02:00.9]} 37. Kf4 {[%clk
0:00:03]} 37... Rxh2 {[%clk 0:02:00.7]} 38. Kg3 {[%clk 0:00:03.1]} 38... Rh6
{[%clk 0:01:49.6]} 39. Kxg4 {[%clk 0:00:03.5]} 39... Rf6 {[%clk 0:01:49.3]} 40.
f4 {[%clk 0:00:03.3]} 40... Rg6+ {[%clk 0:01:46.7]} 41. Kf5 {[%clk 0:00:03.5]}
41... Rf6+ {[%clk 0:01:45]} 42. Ke5 {[%clk 0:00:03.9]} 42... Kd7 {[%clk
0:01:21.5]} 43. Ra1 {[%clk 0:00:03.9]} 43... Ke8 {[%clk 0:01:14.8]} 44. Ra7
{[%clk 0:00:04.2]} 44... Rg6 {[%clk 0:01:08.7]} 45. Ra8+ {[%clk 0:00:03.5]}
45... Ke7 {[%clk 0:01:03]} 46. Ra7+ {[%clk 0:00:04.4]} 46... Ke8 {[%clk
0:01:00.3]} 47. f5 {[%clk 0:00:04.2]} 47... Rg1 {[%clk 0:00:56.9]} 48. Kd6
{[%clk 0:00:04.4]} 48... Rf1 {[%clk 0:00:45.7]} 49. Ra8+ {[%clk 0:00:04.6]}
49... Kf7 {[%clk 0:00:45.3]} 50. Kd7 {[%clk 0:00:05]} 50... Rxf5 {[%clk
0:00:40.1]} 51. d6 {[%clk 0:00:05.5]} 51... g5 {[%clk 0:00:37.8]} 52. Ra1 {[%clk
0:00:05.5]} 52... Kf6 {[%clk 0:00:32.5]} 53. Kd8 {[%clk 0:00:03.3]} 53... Rd5
{[%clk 0:00:28.4]} 54. d7 {[%clk 0:00:03.3]} 54... g4 {[%clk 0:00:19.3]} 55. Kc7
{[%clk 0:00:03.4]} 55... g3 {[%clk 0:00:16.9]} 56. Ra6+ {[%clk 0:00:03.3]} 56...
Ke7 {[%clk 0:00:12.7]} 57. Rg6 {[%clk 0:00:01.8]} 57... Rxd7+ {[%clk 0:00:12.4]}
58. Kc6 {[%clk 0:00:02.2]} 58... Rd3 {[%clk 0:00:12.1]} 59. Kc5 {[%clk
0:00:02.5]} 59... Kf7 {[%clk 0:00:12.2]} 60. Rg4 {[%clk 0:00:02.5]} 60... Kf6
{[%clk 0:00:12.3]} 61. Kc4 {[%clk 0:00:02.9]} 61... Ra3 {[%clk 0:00:09.4]} 62.
Kd4 {[%clk 0:00:03.3]} 62... Ra4+ {[%clk 0:00:09.3]} 63. Ke3 {[%clk 0:00:03.8]}
63... Rxg4 {[%clk 0:00:09.3]} 0-1

[Event "*** Titled Tuesday Blitz"]
[Site "Chess.com"]
[Date "2021.04.06"]
[Round "2"]
[White "monikarozman"]
[Black "Tactictic"]
[Result "0-1"]
[WhiteElo "2201"]
[BlackElo "2437"]
[TimeControl "180+1"]
[EndTime "10:19:39 PDT"]
[Termination "Tactictic won on time"]

1. d4 {[%clk 0:03:00.9]} 1... Nf6 {[%clk 0:02:59]} 2. c4 {[%clk 0:03:00.8]} 2...
e6 {[%clk 0:02:53.8]} 3. Nf3 {[%clk 0:02:57]} 3... d5 {[%clk 0:02:51.8]} 4. Nc3
{[%clk 0:02:54.9]} 4... Be7 {[%clk 0:02:49.9]} 5. Bg5 {[%clk 0:02:47.8]} 5...
O-O {[%clk 0:02:19.7]} 6. e3 {[%clk 0:02:43.8]} 6... b6 {[%clk 0:02:06]} 7. cxd5
{[%clk 0:02:42.9]} 7... Nxd5 {[%clk 0:02:04.4]} 8. Bxe7 {[%clk 0:02:40.4]} 8...
Qxe7 {[%clk 0:02:00.4]} 9. Bd3 {[%clk 0:02:38.5]} 9... Nxc3 {[%clk 0:00:16.8]}
10. bxc3 {[%clk 0:02:37.6]} 10... Bb7 {[%clk 0:00:17.7]} 11. O-O {[%clk
0:02:36.6]} 11... Nd7 {[%clk 0:00:17.4]} 12. Rc1 {[%clk 0:02:29.6]} 12... Nf6
{[%clk 0:00:18.3]} 13. Ne5 {[%clk 0:02:22.3]} 13... c5 {[%clk 0:00:17.6]} 14.
Qe2 {[%clk 0:02:10.6]} 14... Rac8 {[%clk 0:00:17]} 15. Rfd1 {[%clk 0:02:09.8]}
15... Rfd8 {[%clk 0:00:17.4]} 16. h3 {[%clk 0:02:09.4]} 16... cxd4 {[%clk
0:00:18.3]} 17. cxd4 {[%clk 0:02:08.3]} 17... Nd5 {[%clk 0:00:19.2]} 18. Bb1
{[%clk 0:01:57.5]} 18... Nc3 {[%clk 0:00:19.5]} 19. Qd3 {[%clk 0:01:30.2]} 19...
Be4 {[%clk 0:00:19.3]} 20. Qa6 {[%clk 0:01:15.9]} 20... Nxb1 {[%clk 0:00:19.2]}
21. Rxc8 {[%clk 0:01:14.3]} 21... f6 {[%clk 0:00:10.6]} 22. Rxd8+ {[%clk
0:01:09.6]} 22... Qxd8 {[%clk 0:00:11.5]} 23. Nd3 {[%clk 0:00:59.3]} 23... Nc3
{[%clk 0:00:10.9]} 24. Rd2 {[%clk 0:00:55.1]} 24... Qc7 {[%clk 0:00:08.9]} 25.
f3 {[%clk 0:00:41.6]} 25... Bb7 {[%clk 0:00:06.7]} 26. Qxa7 {[%clk 0:00:25.4]}
26... Nb5 {[%clk 0:00:05.4]} 27. Qa4 {[%clk 0:00:21.9]} 27... Qc3 {[%clk
0:00:05.6]} 28. Qc2 {[%clk 0:00:19]} 28... Qa3 {[%clk 0:00:05.1]} 29. Kh2 {[%clk
0:00:18.3]} 29... Qd6+ {[%clk 0:00:03.7]} 30. Kg1 {[%clk 0:00:17.8]} 30... Kf7
{[%clk 0:00:04.6]} 31. Nf2 {[%clk 0:00:17.1]} 31... h5 {[%clk 0:00:05.1]} 32.
Ne4 {[%clk 0:00:16.5]} 32... Bxe4 {[%clk 0:00:04.8]} 33. fxe4 {[%clk 0:00:17.4]}
33... Qb4 {[%clk 0:00:04.8]} 34. e5 {[%clk 0:00:16.5]} 34... f5 {[%clk
0:00:04.8]} 35. Rf2 {[%clk 0:00:15.5]} 35... Na3 {[%clk 0:00:04]} 36. Qc7+
{[%clk 0:00:14.3]} 36... Kg6 {[%clk 0:00:04.5]} 37. Rf1 {[%clk 0:00:10.3]} 37...
h4 {[%clk 0:00:04.6]} 38. Qc1 {[%clk 0:00:06.9]} 38... Nc4 {[%clk 0:00:04.5]}
39. Qe1 {[%clk 0:00:06.1]} 39... Qa3 {[%clk 0:00:04.6]} 40. Qxh4 {[%clk
0:00:05.8]} 40... Qxe3+ {[%clk 0:00:04.5]} 41. Kh1 {[%clk 0:00:05.8]} 41... Nd2
{[%clk 0:00:04.4]} 42. Re1 {[%clk 0:00:05.2]} 42... Qd3 {[%clk 0:00:03.3]} 43.
Qf2 {[%clk 0:00:03.9]} 43... Ne4 {[%clk 0:00:03.8]} 44. Qe3 {[%clk 0:00:04]}
44... Qc2 {[%clk 0:00:03.3]} 45. g4 {[%clk 0:00:03.8]} 45... Nf2+ {[%clk
0:00:03]} 46. Kg2 {[%clk 0:00:03.5]} 46... Nxg4+ {[%clk 0:00:03.2]} 47. Qe2
{[%clk 0:00:02.8]} 47... Ne3+ {[%clk 0:00:03.8]} 48. Kf2 {[%clk 0:00:02.5]}
48... Qxe2+ {[%clk 0:00:04.3]} 49. Rxe2 {[%clk 0:00:03.4]} 49... Nd5 {[%clk
0:00:05]} 50. Kf3 {[%clk 0:00:03.3]} 50... Kf7 {[%clk 0:00:05.7]} 51. Rg2 {[%clk
0:00:03.8]} 51... g5 {[%clk 0:00:06.6]} 52. h4 {[%clk 0:00:03.9]} 52... g4+
{[%clk 0:00:06.7]} 53. Ke2 {[%clk 0:00:04.2]} 53... Kg6 {[%clk 0:00:07.3]} 54.
Rh2 {[%clk 0:00:03.9]} 54... Kh5 {[%clk 0:00:07.9]} 55. Kd3 {[%clk 0:00:03.7]}
55... f4 {[%clk 0:00:08.3]} 56. Ke4 {[%clk 0:00:03.3]} 56... f3 {[%clk
0:00:08.9]} 57. a4 {[%clk 0:00:02.9]} 57... g3 {[%clk 0:00:09]} 58. Ra2 {[%clk
0:00:02.4]} 58... f2 {[%clk 0:00:09.4]} 59. Ra1 {[%clk 0:00:01.5]} 59... g2
{[%clk 0:00:09.9]} 0-1

[Event "*** Titled Tuesday Blitz"]
[Site "Chess.com"]
[Date "2021.04.06"]
[Round "2"]
[White "TC2304"]
[Black "DraG0s3L"]
[Result "1-0"]
[WhiteElo "2301"]
[BlackElo "2499"]
[TimeControl "180+1"]
[EndTime "10:19:40 PDT"]
[Termination "TC2304 won by checkmate"]

1. d4 {[%clk 0:03:00.9]} 1... Nf6 {[%clk 0:02:59.6]} 2. Bg5 {[%clk 0:03:01.3]}
2... Ne4 {[%clk 0:02:59]} 3. Bf4 {[%clk 0:03:01.5]} 3... c5 {[%clk 0:02:59.4]}
4. f3 {[%clk 0:03:01.8]} 4... Nf6 {[%clk 0:02:58.7]} 5. dxc5 {[%clk 0:03:01.8]}
5... Qa5+ {[%clk 0:02:58]} 6. Qd2 {[%clk 0:03:01.6]} 6... Qxc5 {[%clk
0:02:58.1]} 7. Nc3 {[%clk 0:03:02.1]} 7... d6 {[%clk 0:02:57.3]} 8. e4 {[%clk
0:03:02.3]} 8... e5 {[%clk 0:02:57.5]} 9. Be3 {[%clk 0:03:01.6]} 9... Qa5 {[%clk
0:02:57.2]} 10. O-O-O {[%clk 0:02:59.9]} 10... a6 {[%clk 0:02:56.1]} 11. Bc4
{[%clk 0:02:48.5]} 11... Be6 {[%clk 0:02:54.6]} 12. Nd5 {[%clk 0:02:34.4]} 12...
Qxd2+ {[%clk 0:02:52.8]} 13. Rxd2 {[%clk 0:02:32.5]} 13... Nxd5 {[%clk
0:02:52.8]} 14. Bxd5 {[%clk 0:02:28.2]} 14... Bxd5 {[%clk 0:02:51.9]} 15. Rxd5
{[%clk 0:02:28.9]} 15... Be7 {[%clk 0:02:52]} 16. Ne2 {[%clk 0:02:25.8]} 16...
Nd7 {[%clk 0:02:46.6]} 17. Rhd1 {[%clk 0:02:23.3]} 17... O-O-O {[%clk
0:02:43.5]} 18. Nc3 {[%clk 0:02:20.1]} 18... g6 {[%clk 0:02:39.7]} 19. R5d3
{[%clk 0:02:16]} 19... f5 {[%clk 0:02:20.9]} 20. Nd5 {[%clk 0:02:14]} 20... Bf8
{[%clk 0:02:21.4]} 21. Ba7 {[%clk 0:02:03.9]} 21... Nb8 {[%clk 0:02:15]} 22.
Rc3+ {[%clk 0:01:48.1]} 22... Nc6 {[%clk 0:02:14.3]} 23. Bb6 {[%clk 0:01:40.1]}
23... Re8 {[%clk 0:02:07.5]} 24. Nb4 {[%clk 0:01:40.2]} 24... Kd7 {[%clk
0:02:04.6]} 25. Nd5 {[%clk 0:01:33.9]} 25... Bg7 {[%clk 0:01:56.7]} 26. Nc7
{[%clk 0:01:27]} 26... Rc8 {[%clk 0:01:53.4]} 27. Rcd3 {[%clk 0:01:27.2]} 27...
Bf8 {[%clk 0:01:51]} 28. Nd5 {[%clk 0:01:22.8]} 28... Ke6 {[%clk 0:01:46]} 29.
Be3 {[%clk 0:01:14.3]} 29... Rg8 {[%clk 0:01:43.8]} 30. Kb1 {[%clk 0:01:06.5]}
30... f4 {[%clk 0:01:43.4]} 31. Bf2 {[%clk 0:01:00.7]} 31... g5 {[%clk 0:01:44]}
32. g3 {[%clk 0:01:00.9]} 32... Ne7 {[%clk 0:01:31.9]} 33. b3 {[%clk 0:00:46.8]}
33... Nxd5 {[%clk 0:01:31.4]} 34. Rxd5 {[%clk 0:00:47.7]} 34... Be7 {[%clk
0:01:30.1]} 35. c4 {[%clk 0:00:44]} 35... Rgf8 {[%clk 0:01:23.7]} 36. g4 {[%clk
0:00:42.8]} 36... h5 {[%clk 0:01:22.9]} 37. h3 {[%clk 0:00:38.8]} 37... hxg4
{[%clk 0:01:22.8]} 38. hxg4 {[%clk 0:00:39.2]} 38... Rh8 {[%clk 0:01:23]} 39.
Be1 {[%clk 0:00:38]} 39... Rh3 {[%clk 0:01:20.2]} 40. R5d3 {[%clk 0:00:38.3]}
40... b5 {[%clk 0:01:18.4]} 41. cxb5 {[%clk 0:00:35.7]} 41... axb5 {[%clk
0:01:19.3]} 42. Bb4 {[%clk 0:00:35.8]} 42... Rc6 {[%clk 0:01:19.7]} 43. R1d2
{[%clk 0:00:26.4]} 43... Rh1+ {[%clk 0:01:18.9]} 44. Kb2 {[%clk 0:00:26.4]}
44... Rf1 {[%clk 0:01:10.6]} 45. Rd1 {[%clk 0:00:17.4]} 45... Rf2+ {[%clk
0:01:08.3]} 46. R1d2 {[%clk 0:00:17.7]} 46... Rf1 {[%clk 0:01:08.9]} 47. Rd1
{[%clk 0:00:17.9]} 47... Rxd1 {[%clk 0:01:08.6]} 48. Rxd1 {[%clk 0:00:18]} 48...
Rc8 {[%clk 0:00:59.4]} 49. a4 {[%clk 0:00:17.9]} 49... bxa4 {[%clk 0:00:56.2]}
50. bxa4 {[%clk 0:00:18.8]} 50... Rh8 {[%clk 0:00:55.7]} 51. a5 {[%clk
0:00:18.1]} 51... Kd7 {[%clk 0:00:51.2]} 52. Rc1 {[%clk 0:00:17.6]} 52... Rh3
{[%clk 0:00:49.1]} 53. Rc3 {[%clk 0:00:17.1]} 53... Rh8 {[%clk 0:00:48.8]} 54.
Kb3 {[%clk 0:00:17.1]} 54... d5 {[%clk 0:00:38.9]} 55. Bxe7 {[%clk 0:00:14.3]}
55... Kxe7 {[%clk 0:00:39.5]} 56. exd5 {[%clk 0:00:14.4]} 56... Kd6 {[%clk
0:00:40.2]} 57. Rd3 {[%clk 0:00:12.5]} 57... Rb8+ {[%clk 0:00:38.2]} 58. Ka4
{[%clk 0:00:12.6]} 58... Rb1 {[%clk 0:00:38.8]} 59. a6 {[%clk 0:00:12.2]} 59...
Ra1+ {[%clk 0:00:25.7]} 60. Ra3 {[%clk 0:00:11.7]} 60... Rb1 {[%clk 0:00:23]}
61. a7 {[%clk 0:00:11.2]} 61... Kxd5 {[%clk 0:00:17]} 62. a8=Q+ {[%clk
0:00:11.2]} 62... Kd4 {[%clk 0:00:17.8]} 63. Qe4+ {[%clk 0:00:11.4]} 63... Kc5
{[%clk 0:00:17.8]} 64. Qxb1 {[%clk 0:00:12.3]} 64... Kc6 {[%clk 0:00:18.3]} 65.
Rc3+ {[%clk 0:00:12.6]} 65... Kd5 {[%clk 0:00:19.2]} 66. Qb5+ {[%clk 0:00:12.8]}
66... Ke6 {[%clk 0:00:20.1]} 67. Rc6+ {[%clk 0:00:12.8]} 67... Kf7 {[%clk
0:00:21]} 68. Qb7+ {[%clk 0:00:13.7]} 68... Kf8 {[%clk 0:00:21.4]} 69. Rc8#
{[%clk 0:00:14.6]} 1-0

[Event "*** Titled Tuesday Blitz"]
[Site "Chess.com"]
[Date "2021.04.06"]
[Round "2"]
[White "MarcoCorvi"]
[Black "VinzentSpitzl"]
[Result "0-1"]
[WhiteElo "2107"]
[BlackElo "2401"]
[TimeControl "180+1"]
[EndTime "10:19:46 PDT"]
[Termination "VinzentSpitzl won on time"]

1. c4 {[%clk 0:01:17.5]} 1... e6 {[%clk 0:02:58.1]} 2. Nc3 {[%clk 0:01:16.3]}
2... d5 {[%clk 0:02:56.9]} 3. cxd5 {[%clk 0:01:17.2]} 3... exd5 {[%clk
0:02:56.6]} 4. d4 {[%clk 0:01:13.3]} 4... Nf6 {[%clk 0:02:55.7]} 5. Nf3 {[%clk
0:01:13.7]} 5... Bb4 {[%clk 0:02:56]} 6. e3 {[%clk 0:01:13.8]} 6... O-O {[%clk
0:02:54.8]} 7. Bd2 {[%clk 0:01:13.9]} 7... Bf5 {[%clk 0:02:53.2]} 8. Be2 {[%clk
0:01:13.8]} 8... c5 {[%clk 0:02:53.1]} 9. O-O {[%clk 0:01:13.6]} 9... Nc6 {[%clk
0:02:53.2]} 10. a3 {[%clk 0:01:13.6]} 10... Bxc3 {[%clk 0:02:36.5]} 11. Bxc3
{[%clk 0:01:14.5]} 11... c4 {[%clk 0:02:36.3]} 12. Ne5 {[%clk 0:01:14]} 12...
Ne4 {[%clk 0:02:34.4]} 13. Nxc6 {[%clk 0:01:12.4]} 13... bxc6 {[%clk 0:02:33.7]}
14. Bf3 {[%clk 0:01:11.9]} 14... Nxc3 {[%clk 0:02:29.1]} 15. bxc3 {[%clk
0:01:12.8]} 15... Rb8 {[%clk 0:02:29.4]} 16. Qd2 {[%clk 0:01:12.1]} 16... Qb6
{[%clk 0:02:19.8]} 17. h3 {[%clk 0:01:11.7]} 17... Qb2 {[%clk 0:02:18.8]} 18.
Rfd1 {[%clk 0:01:10.6]} 18... Qxd2 {[%clk 0:02:14.7]} 19. Rxd2 {[%clk
0:01:11.5]} 19... Rb3 {[%clk 0:02:14.8]} 20. Rc1 {[%clk 0:01:02.3]} 20... Rxa3
{[%clk 0:02:10.6]} 21. e4 {[%clk 0:01:02.7]} 21... Bxe4 {[%clk 0:02:06.3]} 22.
Bxe4 {[%clk 0:01:01.3]} 22... dxe4 {[%clk 0:02:07.2]} 23. g4 {[%clk 0:01:01.6]}
23... h5 {[%clk 0:01:45.9]} 24. Kg2 {[%clk 0:01:01.5]} 24... hxg4 {[%clk
0:01:43.4]} 25. hxg4 {[%clk 0:01:02.4]} 25... Re8 {[%clk 0:01:42.7]} 26. Re2
{[%clk 0:01:01.6]} 26... a5 {[%clk 0:01:39.8]} 27. Kg3 {[%clk 0:01:01.8]} 27...
g5 {[%clk 0:01:38.8]} 28. f4 {[%clk 0:00:56.3]} 28... f6 {[%clk 0:01:30.8]} 29.
fxg5 {[%clk 0:00:53.8]} 29... fxg5 {[%clk 0:01:31.7]} 30. Kf2 {[%clk 0:00:54]}
30... a4 {[%clk 0:01:23.6]} 31. Ke3 {[%clk 0:00:53.9]} 31... Kg7 {[%clk
0:01:17.6]} 32. Rf2 {[%clk 0:00:53.5]} 32... Rb3 {[%clk 0:01:16.1]} 33. Rf5
{[%clk 0:00:53]} 33... Kg6 {[%clk 0:01:16.1]} 34. Rc5 {[%clk 0:00:51.6]} 34...
Re6 {[%clk 0:01:11.3]} 35. Rxc4 {[%clk 0:00:51.4]} 35... a3 {[%clk 0:01:11.8]}
36. Ra4 {[%clk 0:00:51.4]} 36... Kf6 {[%clk 0:01:06.5]} 37. Ra5 {[%clk
0:00:49.9]} 37... Ke7 {[%clk 0:00:58.7]} 38. Rxg5 {[%clk 0:00:48]} 38... a2
{[%clk 0:00:58.9]} 39. Ra1 {[%clk 0:00:42.6]} 39... Rxc3+ {[%clk 0:00:59.1]} 40.
Ke2 {[%clk 0:00:38.7]} 40... Rc2+ {[%clk 0:00:58.2]} 41. Ke3 {[%clk 0:00:39.1]}
41... Rc3+ {[%clk 0:00:55.6]} 42. Ke2 {[%clk 0:00:39]} 42... Ra3 {[%clk
0:00:54.1]} 43. Rh5 {[%clk 0:00:13.7]} 43... Kd6 {[%clk 0:00:41]} 44. Rf5 {[%clk
0:00:09.7]} 44... Rh6 {[%clk 0:00:38.4]} 45. g5 {[%clk 0:00:08]} 45... Rh2+
{[%clk 0:00:38.2]} 46. Rf2 {[%clk 0:00:08.6]} 46... Rxf2+ {[%clk 0:00:36]} 47.
Kxf2 {[%clk 0:00:09.5]} 47... Ke6 {[%clk 0:00:36.5]} 48. Ke2 {[%clk 0:00:08.1]}
48... Kf5 {[%clk 0:00:36.7]} 49. Kd2 {[%clk 0:00:07.1]} 49... Kxg5 {[%clk
0:00:36.7]} 50. Kc2 {[%clk 0:00:08]} 50... Kf4 {[%clk 0:00:34.9]} 51. Kb2 {[%clk
0:00:08.9]} 51... Ra5 {[%clk 0:00:34]} 52. Rf1+ {[%clk 0:00:09.3]} 52... Ke3
{[%clk 0:00:33.3]} 53. Ka1 {[%clk 0:00:10.2]} 53... Kxd4 {[%clk 0:00:33.2]} 54.
Rd1+ {[%clk 0:00:10.5]} 54... Ke3 {[%clk 0:00:33.1]} 55. Re1+ {[%clk 0:00:10.8]}
55... Kf3 {[%clk 0:00:33.5]} 56. Rf1+ {[%clk 0:00:11]} 56... Ke2 {[%clk
0:00:33.9]} 57. Rc1 {[%clk 0:00:10.6]} 57... e3 {[%clk 0:00:33.2]} 58. Rxc6
{[%clk 0:00:09]} 58... Ke1 {[%clk 0:00:32.6]} 59. Rc1+ {[%clk 0:00:08.7]} 59...
Kd2 {[%clk 0:00:32.1]} 60. Rc2+ {[%clk 0:00:09.4]} 60... Kd3 {[%clk 0:00:30.1]}
61. Rc3+ {[%clk 0:00:09.9]} 61... Kd4 {[%clk 0:00:29.8]} 62. Rc2 {[%clk
0:00:10.5]} 62... Ke4 {[%clk 0:00:23.5]} 63. Rh2 {[%clk 0:00:09.8]} 63... Kf3
{[%clk 0:00:22.5]} 64. Rh3+ {[%clk 0:00:09.9]} 64... Kf2 {[%clk 0:00:22.5]} 65.
Rh2+ {[%clk 0:00:10.1]} 65... Kg3 {[%clk 0:00:23.1]} 66. Re2 {[%clk 0:00:09.6]}
66... Kf3 {[%clk 0:00:23.5]} 67. Rb2 {[%clk 0:00:07]} 67... e2 {[%clk
0:00:23.6]} 68. Rb3+ {[%clk 0:00:06.9]} 68... Kf2 {[%clk 0:00:23]} 69. Rb2
{[%clk 0:00:05.8]} 69... Kf1 {[%clk 0:00:23]} 0-1

[Event "*** Titled Tuesday Blitz"]
[Site "Chess.com"]
[Date "2021.04.06"]
[Round "2"]
[White "Chesswizard_2007"]
[Black "AldokhinIvan"]
[Result "0-1"]
[WhiteElo "2691"]
[BlackElo "2503"]
[TimeControl "180+1"]
[EndTime "10:19:47 PDT"]
[Termination "AldokhinIvan won by checkmate"]

1. e4 {[%clk 0:03:00.9]} 1... c5 {[%clk 0:02:58.8]} 2. Nf3 {[%clk 0:02:54.6]}
2... e6 {[%clk 0:02:58.9]} 3. Nc3 {[%clk 0:02:52.1]} 3... a6 {[%clk 0:02:58.3]}
4. g3 {[%clk 0:02:51.2]} 4... b5 {[%clk 0:02:57.9]} 5. Bg2 {[%clk 0:02:52.1]}
5... Bb7 {[%clk 0:02:58.2]} 6. O-O {[%clk 0:02:52.6]} 6... b4 {[%clk 0:02:51.5]}
7. Ne2 {[%clk 0:02:42.6]} 7... Bxe4 {[%clk 0:02:50.3]} 8. d4 {[%clk 0:02:42.9]}
8... Nf6 {[%clk 0:02:48.5]} 9. Re1 {[%clk 0:02:41]} 9... Be7 {[%clk 0:02:33.2]}
10. Nf4 {[%clk 0:02:31.5]} 10... d5 {[%clk 0:02:27]} 11. dxc5 {[%clk 0:02:25.6]}
11... Bxc5 {[%clk 0:02:20.7]} 12. h3 {[%clk 0:02:18.3]} 12... O-O {[%clk
0:02:15.2]} 13. Qe2 {[%clk 0:02:18]} 13... Nc6 {[%clk 0:02:11.1]} 14. b3 {[%clk
0:02:06.1]} 14... e5 {[%clk 0:01:59.3]} 15. Nd3 {[%clk 0:02:04.7]} 15... Bxf3
{[%clk 0:01:53.9]} 16. Bxf3 {[%clk 0:02:01.3]} 16... Nd4 {[%clk 0:01:51.7]} 17.
Qd1 {[%clk 0:01:59.3]} 17... Nxf3+ {[%clk 0:01:51.2]} 18. Qxf3 {[%clk
0:02:00.2]} 18... e4 {[%clk 0:01:51.4]} 19. Qd1 {[%clk 0:01:56.4]} 19... exd3
{[%clk 0:01:51.1]} 20. Qxd3 {[%clk 0:01:57.3]} 20... Ne4 {[%clk 0:01:46.4]} 21.
Be3 {[%clk 0:01:57.1]} 21... Rc8 {[%clk 0:01:41.5]} 22. Rad1 {[%clk 0:01:49.6]}
22... Qf6 {[%clk 0:01:41.4]} 23. Rc1 {[%clk 0:01:26.8]} 23... Bxe3 {[%clk
0:01:34.5]} 24. Qxe3 {[%clk 0:01:27.7]} 24... Rc3 {[%clk 0:01:33.1]} 25. Qa7
{[%clk 0:01:25.3]} 25... Nxg3 {[%clk 0:01:23.3]} 26. Rcd1 {[%clk 0:01:16.2]}
26... Nf5 {[%clk 0:01:06.2]} 27. Rd3 {[%clk 0:01:07]} 27... Rxd3 {[%clk
0:01:04.2]} 28. cxd3 {[%clk 0:01:07.9]} 28... Nd4 {[%clk 0:01:04]} 29. Re3
{[%clk 0:01:05.2]} 29... h6 {[%clk 0:00:52.8]} 30. Qc5 {[%clk 0:01:02.5]} 30...
Nf5 {[%clk 0:00:46.2]} 31. Rf3 {[%clk 0:00:59.2]} 31... Qg5+ {[%clk 0:00:40.5]}
32. Kh1 {[%clk 0:00:57]} 32... Re8 {[%clk 0:00:38.1]} 33. Qxb4 {[%clk
0:00:49.4]} 33... Rc8 {[%clk 0:00:33.7]} 34. Qg4 {[%clk 0:00:33]} 34... Rc1+
{[%clk 0:00:33.3]} 35. Kh2 {[%clk 0:00:32.8]} 35... Qxg4 {[%clk 0:00:32.6]} 36.
hxg4 {[%clk 0:00:33.7]} 36... Nd4 {[%clk 0:00:32.6]} 37. Rf4 {[%clk 0:00:33.7]}
37... Nc6 {[%clk 0:00:23.6]} 38. Ra4 {[%clk 0:00:33.3]} 38... a5 {[%clk
0:00:23.8]} 39. a3 {[%clk 0:00:32.6]} 39... Rc3 {[%clk 0:00:23.1]} 40. b4 {[%clk
0:00:32.7]} 40... axb4 {[%clk 0:00:22.6]} 41. axb4 {[%clk 0:00:33.6]} 41... Rb3
{[%clk 0:00:23.2]} 42. Ra8+ {[%clk 0:00:28.6]} 42... Kh7 {[%clk 0:00:22.9]} 43.
Rf8 {[%clk 0:00:29.5]} 43... f6 {[%clk 0:00:21.3]} 44. Kg3 {[%clk 0:00:24.9]}
44... Rxd3+ {[%clk 0:00:20.3]} 45. Kf4 {[%clk 0:00:22.1]} 45... Nd4 {[%clk
0:00:16.2]} 46. g5 {[%clk 0:00:17.4]} 46... hxg5+ {[%clk 0:00:16]} 47. Kg4
{[%clk 0:00:16.3]} 47... Kg6 {[%clk 0:00:16.6]} 48. f3 {[%clk 0:00:11.4]} 48...
Rxf3 {[%clk 0:00:15.5]} 49. b5 {[%clk 0:00:05]} 49... f5+ {[%clk 0:00:15.3]} 50.
Rxf5 {[%clk 0:00:05.9]} 50... Rxf5 {[%clk 0:00:14.7]} 51. b6 {[%clk 0:00:06.8]}
51... Rf6 {[%clk 0:00:15.2]} 52. b7 {[%clk 0:00:07.7]} 52... Rb6 {[%clk
0:00:15.9]} 53. b8=Q {[%clk 0:00:08.6]} 53... Rxb8 {[%clk 0:00:16]} 54. Kg3
{[%clk 0:00:09.2]} 54... Rb3+ {[%clk 0:00:16]} 55. Kg4 {[%clk 0:00:10.1]} 55...
Rb4 {[%clk 0:00:16.2]} 56. Kg3 {[%clk 0:00:10.2]} 56... Nf5+ {[%clk 0:00:16.8]}
57. Kf3 {[%clk 0:00:10.6]} 57... Rb3+ {[%clk 0:00:17.4]} 58. Ke2 {[%clk
0:00:11.5]} 58... g4 {[%clk 0:00:18]} 59. Kd2 {[%clk 0:00:12.4]} 59... Nd4
{[%clk 0:00:16.1]} 60. Ke1 {[%clk 0:00:10.1]} 60... Kf5 {[%clk 0:00:15.9]} 61.
Kf2 {[%clk 0:00:10.4]} 61... Kf4 {[%clk 0:00:16]} 62. Ke1 {[%clk 0:00:10.7]}
62... Rb2 {[%clk 0:00:16.4]} 63. Kd1 {[%clk 0:00:11.1]} 63... Ke3 {[%clk
0:00:16.3]} 64. Kc1 {[%clk 0:00:12]} 64... Rc2+ {[%clk 0:00:17]} 65. Kd1 {[%clk
0:00:11.4]} 65... g3 {[%clk 0:00:16.8]} 66. Ke1 {[%clk 0:00:12.3]} 66... Rc1#
{[%clk 0:00:16.7]} 0-1